bitfinex/quotes_BTCUSD_20251224
["timestamp","ask_amount","ask_price","bid_price","bid_amount"]
[1766589325957,0.01150469,86921.0,86914.0,0.0002166]
[1766589326167,0.06902911,86920.0,86914.0,6e-07]
[1766589326380,0.01150469,86921.0,86914.0,6e-07]
[1766589326612,0.0116,86925.0,86914.0,0.05752806]
[1766589326824,0.0116,86925.0,86916.0,0.63848]
[1766589327263,0.0116,86925.0,86916.0,0.70751198]
[1766589327902,0.02310417,86925.0,86916.0,0.63848]
[1766589328111,0.02310417,86925.0,86909.0,1e-08]
[1766589328112,0.01150549,86915.0,86909.0,1e-08]
[1766589328315,0.62526,86914.0,86906.0,0.01150668]
[1766589328527,8.586e-05,86915.0,86912.0,0.01150589]
[1766589328733,0.01150337,86931.0,86912.0,0.01150589]
[1766589328734,0.62526,86935.0,86915.0,0.62118549]
[1766589328976,0.06901898,86933.0,86915.0,0.60968]
[1766589329181,0.63686,86934.0,86914.0,0.60968]
[1766589329388,0.63686,86934.0,86923.0,0.05752177]
[1766589329600,0.000549,86923.0,86917.0,0.01150522]
[1766589329938,0.0116,86926.0,86923.0,0.01150443]
[1766589330138,0.0116,86926.0,86920.0,0.01150483]
[1766589330139,0.0116,86926.0,86921.0,0.01150469]
[1766589330269,0.0116,86926.0,86923.0,0.01150443]
[1766589331501,0.0116,86926.0,86923.0,0.0690264]
[1766589332094,0.0116,86926.0,86924.0,0.05752151]
[1766589332350,0.0116,86926.0,86920.0,0.01150483]
[1766589332351,0.01150139,86946.0,86929.0,0.01150364]
[1766589332494,0.0116,86945.0,86935.0,0.01150284]
[1766589332838,0.0116,86945.0,86930.0,0.0115035]
[1766589332839,0.000549,86935.0,86930.0,0.05751752]
[1766589333041,0.0116,86938.0,86931.0,0.01150337]
[1766589333476,0.0116,86938.0,86932.0,0.01150324]
[1766589333825,0.0116,86938.0,86933.0,0.01150311]
[1766589334030,0.02310178,86943.0,86932.0,0.01150324]
[1766589334251,0.0116,86943.0,86934.0,0.01150297]
[1766589334451,0.62526,86960.0,86947.0,0.01150125]
[1766589334662,0.0001067,86961.0,86947.0,0.05750565]
[1766589334663,0.0116,86959.0,86947.0,0.05750565]
[1766589334996,0.0116,86959.0,86952.0,0.01150059]
[1766589335277,0.0116,86959.0,86950.0,0.01150086]
[1766589335742,0.0116,86959.0,86957.0,0.05749968]
[1766589335955,0.0117067,86961.0,86960.0,0.0574977]
[1766589336158,0.0117067,86961.0,86959.0,0.05804736]
[1766589336368,0.01149782,86973.0,86958.0,0.0114998]
[1766589336369,0.01160663,86982.0,86966.0,0.01149874]
[1766589336574,0.0116,86981.0,86966.0,0.01149874]
[1766589336787,0.0116,86981.0,86974.0,0.01149768]
[1766589336995,0.0116,86981.0,86973.0,0.01149782]
[1766589337202,0.66196,86974.0,86958.0,0.0114998]
[1766589337373,0.06898854,86971.0,86957.0,0.05749933]
[1766589337603,0.01149808,86971.0,86956.0,0.01150006]
[1766589337805,0.01149808,86971.0,86953.0,0.01150046]
[1766589337806,0.01149993,86957.0,86943.0,0.65332178]
[1766589338008,0.0116,86957.0,86946.0,0.05750695]
[1766589338210,0.0116,86957.0,86946.0,0.06900834]
[1766589338411,0.0116,86957.0,86947.0,0.01150125]
[1766589338561,0.0116,86957.0,86948.0,0.01150112]
[1766589338766,0.0116,86957.0,86947.0,0.06900728]
[1766589338965,0.0116,86957.0,86948.0,0.01150112]
[1766589339149,0.01150059,86952.0,86943.0,0.64182]
[1766589339350,0.01150059,86952.0,86935.0,0.24155838]
[1766589339351,0.00055,86943.0,86935.0,0.01150284]
[1766589339645,0.67301,86951.0,86938.0,0.01150245]
[1766589340013,0.01150125,86947.0,86929.0,0.01150364]
[1766589340252,0.00055,86938.0,86935.0,0.01150284]
[1766589340431,0.00055,86938.0,86932.0,0.01150324]
[1766589340643,0.02310165,86944.0,86934.0,0.01150297]
[1766589340857,0.01170658,86944.0,86935.0,0.01150284]
[1766589341182,0.01170658,86944.0,86939.0,0.05751152]
[1766589341311,0.0116,86944.0,86938.0,0.65332245]
[1766589341519,0.0116,86946.0,86938.0,0.64182]
[1766589341928,0.01150178,86943.0,86938.0,0.64127]
[1766589342935,0.02310139,86946.0,86938.0,0.64127]
[1766589343138,0.08060846,86946.0,86938.0,0.64127]
[1766589343347,0.0116,86946.0,86938.0,0.64127]
[1766589343525,0.02310139,86946.0,86938.0,0.64127]
[1766589343728,0.01150152,86945.0,86938.0,0.64127]
[1766589344024,0.0116,86946.0,86938.0,0.64127]
[1766589344263,0.01150152,86945.0,86938.0,0.64127]
[1766589344463,0.01150165,86944.0,86938.0,0.64127]
[1766589344883,0.02310139,86946.0,86938.0,0.64127]
[1766589345328,0.01150152,86945.0,86938.0,0.64127]
[1766589346076,0.08060896,86946.0,86938.0,0.64127]
[1766589346283,0.0806086,86946.0,86938.0,0.64127]
[1766589346482,0.0806086,86946.0,86934.0,0.06912735]
[1766589346483,0.05751423,86935.0,86934.0,0.00011]
[1766589346729,0.67291297,86934.0,86923.0,0.01150443]
[1766589346930,0.66141,86934.0,86926.0,0.06902416]
[1766589347129,0.660861,86934.0,86928.0,0.05751873]
[1766589347335,0.660861,86934.0,86930.0,0.0115035]
[1766589347503,0.660861,86934.0,86916.0,0.64182]
[1766589347709,0.01150337,86931.0,86920.0,0.01150483]
[1766589347939,0.01150324,86932.0,86920.0,0.06902895]
[1766589348297,0.01150337,86931.0,86920.0,0.06902895]
[1766589348494,0.73042995,86933.0,86921.0,0.01150469]
[1766589348693,0.06901975,86932.0,86921.0,0.01150469]
[1766589348945,0.06901975,86932.0,86916.0,0.64182]
[1766589348946,0.000549,86921.0,86908.0,0.01150642]
[1766589349154,0.000549,86921.0,86912.0,0.01150589]
[1766589349366,0.000549,86921.0,86913.0,0.01150575]
[1766589349491,0.0116,86925.0,86917.0,0.01150522]
[1766589349694,0.0116,86925.0,86920.0,0.05752382]
[1766589349923,0.01105,86925.0,86922.0,0.0575228]
[1766589350123,0.01105,86925.0,86921.0,0.06902817]
[1766589350451,0.01105,86925.0,86921.0,0.01150469]
[1766589350854,0.01105,86925.0,86918.0,0.05752546]
[1766589351086,0.66141,86924.0,86911.0,0.0575301]
[1766589351295,0.66141,86924.0,86909.0,0.01150628]
[1766589351296,0.000549,86918.0,86913.0,0.05752873]
[1766589351507,0.000549,86918.0,86914.0,0.01150562]
[1766589351696,0.01150483,86920.0,86912.0,0.0116]
[1766589351951,0.0690277,86922.0,86912.0,0.0116]
[1766589352157,0.01150443,86923.0,86913.0,0.01150575]
[1766589352378,0.01150443,86923.0,86912.0,0.02310589]
[1766589352379,0.06902662,86923.0,86912.0,0.08063478]
[1766589352588,0.06902662,86923.0,86913.0,0.01150575]
[1766589352789,0.01150456,86922.0,86913.0,0.01150575]
[1766589352974,0.67291443,86923.0,86912.0,0.02310589]
[1766589353298,0.73043675,86923.0,86912.0,0.06903468]
[1766589353474,0.66141,86923.0,86913.0,0.01150575]
[1766589353745,0.01105,86925.0,86919.0,0.06902939]
[1766589353911,0.0116,86923.0,86919.0,0.01150496]
[1766589354131,0.0116,86923.0,86917.0,0.06903086]
[1766589354453,0.0116,86923.0,86916.0,0.06903199]
[1766589354743,0.0116,86923.0,86917.0,0.01150522]
[1766589355341,0.0116,86923.0,86918.0,0.01150509]
[1766589355458,0.0116,86923.0,86919.0,0.01150496]
[1766589355663,0.0116,86923.0,86918.0,0.01150509]
[1766589355864,0.0116,86923.0,86919.0,0.01150496]
[1766589356275,0.0116,86923.0,86913.0,0.01150575]
[1766589356481,0.01150456,86922.0,86911.0,0.06903599]
[1766589356686,0.01150456,86922.0,86912.0,0.01150589]
[1766589357104,0.01150483,86920.0,86911.0,0.0116]
[1766589357503,0.01150456,86922.0,86911.0,0.0116]
[1766589357504,0.06902872,86921.0,86911.0,0.0116]
[1766589357925,0.01150469,86921.0,86911.0,0.08063597]
[1766589358112,0.0116,86923.0,86912.0,0.06903524]
[1766589358331,0.0116,86923.0,86916.0,0.01150536]
[1766589358696,0.0116,86923.0,86917.0,0.01150522]
[1766589358895,0.0116,86923.0,86916.0,0.01150536]
[1766589359376,0.0116,86923.0,86917.0,0.01150522]
[1766589359587,0.0116,86923.0,86916.0,0.06903214]
[1766589359807,0.0116,86923.0,86916.0,0.01150536]
[1766589360012,0.0116,86923.0,86916.0,0.06903185]
[1766589360160,0.0116,86923.0,86916.0,0.01150536]
[1766589360365,0.0116,86923.0,86917.0,0.01150522]
[1766589360567,0.01150218,86940.0,86927.0,0.0115039]
[1766589360780,0.0116,86938.0,86928.0,0.01150377]
[1766589361120,0.0116,86938.0,86929.0,0.01150364]
[1766589361243,0.001099,86929.0,86920.0,0.0116]
[1766589361464,0.0690235,86927.0,86915.0,0.06903292]
[1766589361834,0.06902646,86924.0,86913.0,0.01150575]
[1766589361981,0.0116,86923.0,86913.0,0.06903446]
[1766589362181,0.0116,86923.0,86917.0,0.06903076]
[1766589362379,0.0116,86923.0,86917.0,0.01150522]
[1766589362608,0.0116,86923.0,86918.0,0.01150509]
[1766589362935,0.0116,86923.0,86915.0,0.01150549]
[1766589363153,0.0116,86923.0,86916.0,0.01150536]
[1766589363900,0.0116,86923.0,86917.0,0.01150522]
[1766589364105,0.0116,86923.0,86916.0,0.01150536]
[1766589364336,0.06902228,86930.0,86919.0,0.01150496]
[1766589364556,0.0116,86929.0,86911.0,0.60039]
[1766589364764,0.0116,86928.0,86925.0,0.01150417]
[1766589364981,0.0116,86927.0,86925.0,8.586e-05]
[1766589365407,0.0116,86928.0,86925.0,8.586e-05]
[1766589365610,0.0116,86928.0,86927.0,0.000549]
[1766589366022,0.0116,86928.0,86925.0,8.586e-05]
[1766589367596,0.03071411,86968.0,86925.0,8.586e-05]
[1766589367597,0.01150125,86947.0,86929.0,0.58879]
[1766589367804,0.01150046,86953.0,86936.0,0.58879]
[1766589368003,0.01150046,86953.0,86925.0,8.586e-05]
[1766589368004,0.0116,86952.0,86949.0,0.01150099]
[1766589368261,0.0116,86952.0,86944.0,0.01150165]
[1766589368462,0.0116,86952.0,86942.0,0.01150192]
[1766589368463,0.0116,86952.0,86943.0,0.01150178]
[1766589368619,0.02310059,86952.0,86942.0,0.01150192]
[1766589368816,0.01150125,86947.0,86933.0,0.01150311]
[1766589368996,0.00055,86942.0,86929.0,0.58879]
[1766589369197,0.61087245,86938.0,86926.0,0.02310403]
[1766589369423,0.61087245,86938.0,86926.0,0.0116]
[1766589369424,0.06901686,86936.0,86926.0,0.0116]
[1766589369623,0.01150377,86928.0,86925.0,8.586e-05]
[1766589369837,0.01150417,86925.0,86913.0,0.01150575]
[1766589370004,0.06902581,86924.0,86915.0,0.00011]
[1766589370186,0.0115043,86924.0,86915.0,0.00011]
[1766589370385,0.06902586,86924.0,86915.0,0.00011]
[1766589370627,0.0115043,86924.0,86915.0,0.01161549]
[1766589370855,0.01150443,86923.0,86915.0,0.00011]
[1766589371086,0.0115043,86924.0,86915.0,0.00011]
[1766589371374,0.01157776,86925.0,86916.0,0.01150536]
[1766589371573,0.01157776,86925.0,86915.0,0.00011]
[1766589371574,0.01150456,86922.0,86915.0,0.00011]
[1766589371781,0.01150469,86921.0,86915.0,0.00011]
[1766589371990,0.06903066,86918.0,86915.0,0.00011]
[1766589372195,7.359e-05,86925.0,86915.0,0.00011]
[1766589372398,0.05752491,86919.0,86907.0,0.01150655]
[1766589372595,0.01150483,86920.0,86910.0,0.01150615]
[1766589372820,0.01150483,86920.0,86911.0,0.01150602]
[1766589373023,0.01150496,86919.0,86909.0,0.06903753]
[1766589373220,0.0116,86921.0,86912.0,0.01150589]
[1766589373425,0.011051,86921.0,86913.0,0.06903423]
[1766589373625,0.011051,86921.0,86914.0,0.01150562]
[1766589373954,0.011051,86921.0,86913.0,0.06903423]
[1766589373955,7.359e-05,86925.0,86922.0,0.01150456]
[1766589374160,0.00011,86935.0,86929.0,0.01150364]
[1766589374391,0.01150152,86945.0,86932.0,0.01150324]
[1766589374392,0.06901202,86943.0,86932.0,0.01150324]
[1766589374590,0.0116,86942.0,86939.0,0.06901387]
[1766589374817,0.0116,86942.0,86939.0,0.01150231]
[1766589374948,0.59948,86954.0,86945.0,0.01150152]
[1766589375147,0.0116,86953.0,86946.0,0.01150139]
[1766589375560,0.0116,86953.0,86945.0,0.069009]
[1766589375561,0.0116,86953.0,86945.0,0.01150152]
[1766589375767,0.0116,86953.0,86944.0,0.06900958]
[1766589375975,0.0116,86953.0,86945.0,0.01150152]
[1766589376179,0.0116,86953.0,86943.0,0.06901022]
[1766589376385,0.0116,86953.0,86944.0,0.06900988]
[1766589376586,0.0116,86953.0,86941.0,0.01150205]
[1766589376785,0.02310046,86953.0,86939.0,0.01150231]
[1766589376995,0.01150099,86949.0,86939.0,0.01150231]
[1766589377419,0.01150099,86949.0,86940.0,0.01150218]
[1766589377601,0.06900533,86950.0,86940.0,0.01150218]
[1766589377800,0.01150086,86950.0,86941.0,0.01150205]
[1766589378005,0.06910361,86953.0,86945.0,0.01150152]
[1766589378006,0.0116,86953.0,86945.0,0.01150152]
[1766589378255,0.0116,86953.0,86946.0,0.01150139]
[1766589378461,0.69361207,86960.0,86928.0,0.04604]
[1766589378462,0.01149914,86963.0,86953.0,0.05750209]
[1766589378628,0.0116,86961.0,86951.0,0.65779437]
[1766589378831,0.01149954,86960.0,86951.0,0.58879]
[1766589379035,0.01149967,86959.0,86951.0,0.58879]
[1766589379234,0.0114998,86958.0,86951.0,0.58879]
[1766589379482,0.0690004,86956.0,86951.0,0.58879]
[1766589379785,0.01149993,86957.0,86947.0,0.0116]
[1766589380520,0.01150006,86956.0,86947.0,0.0116]
[1766589380742,0.06899987,86957.0,86947.0,0.02310125]
[1766589381335,0.01149993,86957.0,86948.0,0.0116]
[1766589381542,0.01150006,86956.0,86948.0,0.0116]
[1766589381762,0.06899973,86957.0,86948.0,0.0116]
[1766589382098,0.01149993,86957.0,86948.0,0.0116]
[1766589382308,0.01150006,86956.0,86948.0,0.0116]
[1766589382510,0.0116,86961.0,86948.0,0.0691054]
[1766589382511,0.01149954,86960.0,86948.0,0.0691054]
[1766589382702,0.0116,86961.0,86951.0,0.06900413]
[1766589382905,0.06899728,86960.0,86949.0,0.06900532]
[1766589383062,0.01149954,86960.0,86951.0,0.01150073]
[1766589383290,0.08059649,86961.0,86951.0,0.01150073]
[1766589383501,0.0116,86961.0,86954.0,0.01150033]
[1766589383703,0.00011,86964.0,86961.0,0.0114994]
[1766589383862,0.0116,86969.0,86964.0,0.01149901]
[1766589384069,0.0116,86969.0,86962.0,0.06899539]
[1766589384285,0.0116,86969.0,86962.0,0.01149927]
[1766589384694,0.01149716,86978.0,86967.0,0.01149861]
[1766589384978,0.01149755,86975.0,86965.0,0.58879]
[1766589385177,0.01149755,86975.0,86965.0,0.60028887]
[1766589385375,0.05748976,86973.0,86965.0,0.588241]
[1766589385628,0.06898634,86974.0,86965.0,0.588241]
[1766589385853,0.05748796,86975.0,86965.0,0.59973987]
[1766589386052,0.01156,86977.0,86957.0,0.06899937]
[1766589386053,0.01149834,86969.0,86957.0,0.06899937]
[1766589386258,0.01149848,86968.0,86958.0,0.0114998]
[1766589386665,0.06899091,86968.0,86957.0,0.01149993]
[1766589386828,0.08055012,86969.0,86958.0,0.0689988]
[1766589387055,0.08055012,86969.0,86959.0,0.01149967]
[1766589387457,0.01149848,86968.0,86958.0,0.0114998]
[1766589387656,0.08055012,86969.0,86959.0,0.01149967]
[1766589388117,0.01156,86969.0,86960.0,0.01149954]
[1766589388523,0.01149729,86977.0,86969.0,0.000549]
[1766589388708,0.01156,86976.0,86969.0,0.000549]
[1766589388866,0.01156,86976.0,86968.0,0.01149848]
[1766589389267,0.01156,86976.0,86967.0,0.01149861]
[1766589389456,0.01156,86976.0,86968.0,0.01149848]
[1766589389674,0.01156,86976.0,86964.0,0.22997941]
[1766589389675,0.00010224,86978.0,86973.0,0.01149782]
[1766589389879,2.24e-06,86978.0,86976.0,0.000549]
[1766589390104,2.24e-06,86978.0,86973.0,0.01149782]
[1766589390524,2.24e-06,86978.0,86971.0,0.06898829]
[1766589390694,2.24e-06,86978.0,86971.0,0.01149808]
[1766589390907,2.24e-06,86978.0,86970.0,0.06898897]
[1766589391213,0.0114994,86978.0,86969.0,0.01156]
[1766589391409,0.01149729,86977.0,86969.0,6.152e-05]
[1766589391657,0.06898643,86978.0,86969.0,0.011499]
[1766589391881,0.01149861,86967.0,86949.0,0.01150099]
[1766589392081,0.59089,86962.0,86946.0,0.06900784]
[1766589392287,0.0115002,86955.0,86947.0,0.01156]
[1766589392614,0.01150073,86951.0,86944.0,0.00011]
[1766589392825,0.01150033,86954.0,86951.0,6e-05]
[1766589393026,0.01149967,86959.0,86951.0,6e-05]
[1766589393236,0.05750037,86956.0,86954.0,0.00055]
[1766589393454,0.01149993,86957.0,86947.0,0.01156]
[1766589393857,0.01149993,86957.0,86947.0,0.01165999]
[1766589394234,0.01156,86960.0,86957.0,6e-05]
[1766589394446,0.01156,86966.0,86960.0,0.00055]
[1766589394885,0.01149901,86964.0,86960.0,0.00055]
[1766589395091,0.06899611,86963.0,86949.0,0.06900546]
[1766589395290,0.01149901,86964.0,86954.0,0.01156]
[1766589395492,0.06899387,86965.0,86954.0,0.08056197]
[1766589395631,0.01156,86966.0,86956.0,0.01150006]
[1766589396070,0.01149887,86965.0,86955.0,0.0115002]
[1766589396264,0.0114994,86961.0,86954.0,0.01156]
[1766589396491,0.01149914,86963.0,86954.0,0.01156]
[1766589396686,0.06899534,86964.0,86954.0,0.02306033]
[1766589397302,0.06899534,86964.0,86954.0,0.01150033]
[1766589397503,0.06899534,86964.0,86954.0,0.08056163]
[1766589397504,0.01149901,86964.0,86954.0,0.08056163]
[1766589397684,0.06899349,86965.0,86954.0,0.08056163]
[1766589398088,0.01149887,86965.0,86955.0,0.0115002]
[1766589398333,0.01149901,86964.0,86954.0,0.01156]
[1766589398613,0.0114994,86961.0,86954.0,0.01156]
[1766589398808,0.01198933,86954.0,86947.0,9.999e-05]
[1766589399008,0.01198933,86954.0,86938.0,0.01150245]
[1766589399009,0.05750422,86951.0,86939.0,0.05751095]
[1766589399243,0.01150086,86950.0,86939.0,0.08067994]
[1766589399458,0.01150086,86950.0,86940.0,0.05751091]
[1766589399776,0.01150099,86949.0,86940.0,0.01150218]
[1766589399980,0.01150086,86950.0,86941.0,0.01150205]
[1766589400154,0.55459059,86952.0,86943.0,0.01150178]
[1766589400320,0.54309,86952.0,86943.0,0.01150178]
[1766589401001,0.54309,86952.0,86943.0,0.05750879]
[1766589401207,0.54309,86952.0,86943.0,0.06901057]
[1766589401566,0.54309,86952.0,86944.0,0.01150165]
[1766589401974,0.55459059,86952.0,86942.0,0.01150192]
[1766589402766,0.54309,86952.0,86943.0,0.01150178]
[1766589402963,0.60059318,86952.0,86942.0,0.01150192]
[1766589403390,0.05750463,86950.0,86939.0,0.08068035]
[1766589403591,0.61209647,86949.0,86939.0,0.01166668]
[1766589403798,0.01150112,86948.0,86939.0,0.01166668]
[1766589404056,0.61209647,86949.0,86939.0,0.02316899]
[1766589404253,0.61209596,86949.0,86939.0,0.02316899]
[1766589404457,0.54309,86949.0,86939.0,0.02316899]
[1766589404675,0.61209597,86949.0,86939.0,0.02316899]
[1766589404813,0.55459099,86949.0,86939.0,0.08068049]
[1766589405020,0.54309,86949.0,86940.0,0.01150218]
[1766589405221,0.54309,86949.0,86943.0,0.01150178]
[1766589405420,0.0114998,86958.0,86946.0,0.06900779]
[1766589405601,0.01150006,86956.0,86946.0,0.01150139]
[1766589405805,0.0115002,86955.0,86945.0,0.05750756]
[1766589406252,0.0115002,86955.0,86945.0,0.01150152]
[1766589406483,0.06900133,86955.0,86945.0,0.01150152]
[1766589406707,0.0115002,86955.0,86945.0,0.01150152]
[1766589406977,0.01156,86953.0,86948.0,0.01150112]
[1766589407180,0.01156,86957.0,86954.0,0.00055]
[1766589407398,0.01167,86959.0,86951.0,0.01150073]
[1766589407601,0.0114998,86958.0,86947.0,0.01156]
[1766589407775,0.0114998,86958.0,86947.0,0.02306125]
[1766589407979,0.06899935,86958.0,86947.0,0.02306125]
[1766589408180,0.02316967,86959.0,86947.0,0.02306125]
[1766589408181,0.02316967,86959.0,86948.0,0.01150112]
[1766589408396,0.02316967,86959.0,86949.0,0.01150099]
[1766589408643,0.02316967,86959.0,86948.0,0.06900675]
[1766589408644,0.0806682,86959.0,86948.0,0.06900675]
[1766589408852,0.02316967,86959.0,86949.0,0.01150099]
[1766589409288,0.0115002,86955.0,86947.0,0.01156]
[1766589409514,0.01150059,86952.0,86943.0,0.01150178]
[1766589409735,0.01150046,86953.0,86944.0,0.01156]
[1766589410100,0.01150086,86950.0,86938.0,0.01150245]
[1766589410300,0.01150086,86950.0,86941.0,0.01150205]
[1766589410461,0.01150086,86950.0,86941.0,0.01156]
[1766589411259,0.54309,86949.0,86939.0,0.00021668]
[1766589411486,0.01150218,86940.0,86926.0,0.01150403]
[1766589411690,0.54309,86937.0,86929.0,0.01150364]
[1766589411888,0.54309,86937.0,86926.0,0.05751992]
[1766589412063,0.61210575,86937.0,86926.0,0.01150403]
[1766589412268,0.54309,86937.0,86929.0,0.01150364]
[1766589412486,0.01156,86940.0,86937.0,0.00055]
[1766589412689,0.01156,86940.0,86935.0,0.01150284]
[1766589413053,0.01156,86940.0,86934.0,0.01150297]
[1766589413647,0.01156,86940.0,86935.0,0.01150284]
[1766589414289,0.01156,86940.0,86934.0,0.01150297]
[1766589415000,0.01156,86940.0,86933.0,0.01150311]
[1766589415197,0.62366317,86940.0,86930.0,0.0115035]
[1766589415602,0.55459231,86939.0,86929.0,0.08058171]
[1766589415805,0.55459231,86939.0,86930.0,0.0115035]
[1766589416023,0.54309,86939.0,86930.0,0.06902093]
[1766589416243,0.54309,86939.0,86931.0,0.01150337]
[1766589416432,0.54309,86939.0,86932.0,0.05751621]
[1766589416662,0.05750153,86955.0,86939.0,0.00055]
[1766589416865,0.01156,86954.0,86948.0,0.01150112]
[1766589417180,0.01156,86954.0,86947.0,0.01150125]
[1766589417381,0.01156,86954.0,86946.0,0.01150139]
[1766589417784,0.01156,86954.0,86945.0,0.06900888]
[1766589417993,0.05750894,86943.0,86942.0,0.01156]
[1766589418220,0.01150218,86940.0,86930.0,0.0115035]
[1766589418433,0.46362258,86940.0,86930.0,0.0115035]
[1766589418976,0.01150205,86941.0,86931.0,0.01150337]
[1766589419317,0.06901153,86942.0,86932.0,0.01150324]
[1766589419524,0.01150205,86941.0,86928.0,0.01150377]
[1766589419653,0.01150205,86941.0,86920.0,0.01150483]
[1766589419654,0.000549,86928.0,86920.0,0.01150483]
[1766589419857,0.000549,86928.0,86922.0,0.01150456]
[1766589420062,0.000549,86928.0,86924.0,0.0690257]
[1766589420281,0.05751421,86936.0,86924.0,0.0690257]
[1766589420282,0.01156,86933.0,86926.0,0.01150403]
[1766589420781,0.01156,86933.0,86925.0,0.06902499]
[1766589421216,0.01156,86933.0,86925.0,0.01150417]
[1766589421412,0.01156,86933.0,86926.0,0.01150403]
[1766589421615,0.01156,86935.0,86933.0,0.000549]
[1766589421810,0.06907431,86935.0,86933.0,0.000549]
[1766589422163,0.01150297,86934.0,86924.0,0.0115043]
[1766589422342,0.02306284,86935.0,86925.0,0.05752081]
[1766589422540,0.01156,86935.0,86925.0,0.06902498]
[1766589422878,0.00242931,86935.0,86927.0,0.0115039]
[1766589423074,0.01156,86937.0,86935.0,0.000549]
[1766589423279,0.01150337,86931.0,86919.0,0.03442234]
[1766589423569,0.01150324,86932.0,86920.0,0.01150483]
[1766589423769,0.01150324,86932.0,86922.0,0.01150456]
[1766589423987,0.49803,86934.0,86921.0,0.02306469]
[1766589424174,0.56704787,86934.0,86922.0,0.01156]
[1766589424376,0.56704787,86934.0,86923.0,0.06902646]
[1766589424610,0.5555449,86934.0,86923.0,0.06902646]
[1766589424856,0.49803,86934.0,86927.0,0.0115039]
[1766589425021,0.01150192,86942.0,86929.0,0.01150364]
[1766589425022,0.01156,86936.0,86929.0,0.01150364]
[1766589425221,0.01156,86936.0,86929.0,0.0690218]
[1766589425433,0.01156,86936.0,86924.0,0.24164545]
[1766589425434,0.02306271,86936.0,86924.0,0.01156]
[1766589425588,0.01150284,86935.0,86924.0,0.08058568]
[1766589425789,0.01160494,86936.0,86929.0,0.01150364]
[1766589425998,0.01160494,86936.0,86928.0,0.01150377]
[1766589426602,0.01160494,86936.0,86927.0,0.06902333]
[1766589426801,0.01150086,86950.0,86936.0,0.00055]
[1766589427008,0.01156,86949.0,86939.0,0.06901332]
[1766589427210,0.01150139,86946.0,86935.0,0.05751398]
[1766589427450,0.08056626,86949.0,86938.0,0.01150245]
[1766589427613,0.02306099,86949.0,86938.0,0.01150245]
[1766589427824,0.01156,86949.0,86940.0,0.05751063]
[1766589428020,4.498e-05,86950.0,86940.0,0.01150218]
[1766589428284,4.498e-05,86950.0,86941.0,0.02306205]
[1766589428432,4.498e-05,86950.0,86941.0,0.01156]
[1766589428638,0.06900716,86948.0,86941.0,0.01156]
[1766589428814,4.498e-05,86950.0,86941.0,0.01156]
[1766589428815,0.01154584,86950.0,86941.0,0.01156]
[1766589428999,4.498e-05,86950.0,86941.0,0.02306205]
[1766589429203,4.498e-05,86950.0,86941.0,0.08057231]
[1766589429486,4.498e-05,86950.0,86941.0,0.02306205]
[1766589429844,0.49803,86967.0,86950.0,3.902e-05]
[1766589430044,0.66285137,86980.0,86962.0,0.01149927]
[1766589430045,0.01149782,86973.0,86962.0,0.01149927]
[1766589430247,0.000549,86962.0,86961.0,0.0114994]
[1766589430495,6.135e-05,86973.0,86972.0,0.05748976]
[1766589430692,0.49803,86984.0,86972.0,0.05748976]
[1766589430850,0.01156,86981.0,86972.0,0.01149795]
[1766589431053,0.01156,86981.0,86973.0,0.01149782]
[1766589431280,0.01156,86981.0,86978.0,0.01149716]
[1766589431479,0.49803,86984.0,86978.0,0.01149716]
[1766589431682,0.01156,86983.0,86981.0,0.000544]
[1766589431883,0.0003555,86983.0,86977.0,0.01149729]
[1766589432085,0.0003555,86983.0,86980.0,0.01149689]
[1766589432284,0.0003555,86983.0,86980.0,0.06898069]
[1766589432502,5e-07,86983.0,86981.0,0.05748381]
[1766589432684,5e-07,86983.0,86980.0,0.06898133]
[1766589432887,5e-07,86983.0,86980.0,0.06898136]
[1766589433068,5e-07,86983.0,86982.0,0.02291738]
[1766589433277,0.01156,87002.0,86993.0,0.01149517]
[1766589433542,0.01166659,87002.0,86993.0,0.01149517]
[1766589433754,0.01166659,87002.0,86994.0,0.01149504]
[1766589433961,0.01166659,87002.0,86996.0,0.01149478]
[1766589434131,0.01166659,87002.0,86994.0,0.01149504]
[1766589434301,0.01166659,87002.0,86993.0,0.01149517]
[1766589434302,0.00010659,87002.0,86993.0,0.01149517]
[1766589434507,2.759e-05,87002.0,86999.0,0.01149438]
[1766589434992,2.759e-05,87002.0,86999.0,0.06896612]
[1766589435204,2.759e-05,87002.0,86995.0,0.02305491]
[1766589435414,0.000549,86999.0,86995.0,0.01156]
[1766589435742,2.759e-05,87002.0,86995.0,0.02305491]
[1766589435869,2.759e-05,87002.0,86996.0,0.01149478]
[1766589436303,2.759e-05,87002.0,86995.0,0.08052908]
[1766589436517,2.759e-05,87002.0,86995.0,0.02305491]
[1766589436730,2.759e-05,87002.0,86996.0,0.01156]
[1766589436878,2.759e-05,87002.0,86996.0,0.02305478]
[1766589437284,2.759e-05,87002.0,86997.0,0.01149464]
[1766589437479,2.759e-05,87002.0,86998.0,0.01149451]
[1766589437729,2.759e-05,87002.0,86999.0,0.01149438]
[1766589437925,2.759e-05,87002.0,86996.0,0.08052858]
[1766589438103,2.759e-05,87002.0,86999.0,0.01149438]
[1766589438327,2.759e-05,87002.0,86996.0,0.01156]
[1766589438908,2.759e-05,87002.0,86997.0,0.01149464]
[1766589439666,2.759e-05,87002.0,86999.0,0.01149438]
[1766589439879,2.759e-05,87002.0,86996.0,0.06903371]
[1766589440117,2.759e-05,87002.0,86998.0,0.01149451]
[1766589440338,2.759e-05,87002.0,86997.0,0.25]
[1766589440551,0.000549,86998.0,86997.0,0.25]
[1766589440980,2.759e-05,87002.0,86997.0,0.25]
[1766589441189,2.759e-05,87002.0,86997.0,0.26149464]
[1766589441360,2.759e-05,87002.0,86997.0,0.25]
[1766589441760,2.759e-05,87002.0,86997.0,0.26149464]
[1766589442166,2.759e-05,87002.0,86997.0,0.31896782]
[1766589442502,0.000549,86997.0,86992.0,0.01156]
[1766589443062,0.06896488,87001.0,86992.0,0.01156]
[1766589443247,2.759e-05,87002.0,86993.0,0.01149517]
[1766589443444,2.759e-05,87002.0,87001.0,0.0574706]
[1766589443650,0.0004,87026.0,87013.0,0.01149253]
[1766589443875,0.0004,87026.0,87023.0,0.0574558]
[1766589443876,1e-08,87025.0,87023.0,0.0574558]
[1766589444094,1e-08,87025.0,87022.0,0.01149134]
[1766589444095,0.0066,87033.0,87026.0,0.01149081]
[1766589444313,0.0066,87033.0,87016.0,0.02291738]
[1766589444314,0.0002,87040.0,87032.0,0.0002]
[1766589444527,0.01156,87039.0,87033.0,0.01148989]
[1766589444750,0.01136,87039.0,87031.0,0.01149015]
[1766589445042,0.01168897,87040.0,87029.0,0.06894243]
[1766589445240,0.06893868,87034.0,87029.0,0.01155757]